Cogmind - Beta 17 @@@ ROGUE MODE // 2026.07.05 @ 19:33:03 Player: chai Result: Destroyed by P-60 Hacker with Shock Rifle Performance ------------- Evolutions (2) 1000 Regions Visited (9) 1800 Robots Destroyed (103) 515 Value Destroyed (4827) 4827 Prototype IDs (28) 560 Alien Tech Used (0) 0 Bonus (3159) 3159 TOTAL SCORE: 11861 Bonus ------- High Alert Combat Kills 756 Follower Combat Kills 260 Entered Garrisons 400 Used RIF Installer 1500 Aligned with FarCom 300 Friendly Fire -57 Cogmind --------- Core Integrity 0/550 Matter 300/300 Energy 100/100 System Corruption 0% Temperature Cool (0) Movement Core (150) Ox2 Location -8/Garrison Parts ------- > --- POWER (1) -------- (None) > --- PROPULSION (2) --- (None) > --- UTILITY (6) ------ Lightpack 2.0 Relay Coupler [Grunt] (15) Corruption Screen > --- WEAPON (2) ------- Katana > --- INVENTORY (40) --- Improved Ion Engine Light Nuclear Core Aluminum Leg Aluminum Leg Improved Aluminum Leg Flexi-carbon Leg Wheel Armored Wheel Heat Sink Improved Heat Sink Improved Heat Sink High-capacity Matter Pod (200) Melee Analysis Suite Launcher Guidance Computer Advanced ECM Suite Improved Power Shielding Improved Power Shielding Powered Armor Powered Armor Hardlight Generator Relay Coupler [NC] (29) Relay Coupler [Swarmer] (23) Relay Coupler [Duelist] (25) Relay Coupler [Sentry] (24) Relay Coupler [Demolisher] (23) Relay Coupler [Hunter] (14) Relay Coupler [Heavy] (10) Relay Coupler [Behemoth] (10) Heavy EM Pulse Gun Beam Rifle Heavy Particle Cannon Heavy Assault Rifle Gauss Rifle Proton Missile Launcher Proton Missile Launcher Missile Launcher Datajack Peak State ------------ > --- POWER ------------ Light Nuclear Core > --- PROPULSION ------- Flexi-carbon Leg Flexi-carbon Leg > --- UTILITY ---------- Improved Heat Sink Improved Heat Sink Lightpack 2.0 Powered Armor > --- WEAPON ----------- Proton Missile Launcher Maul > --- INVENTORY -------- Improved Ion Engine Light Nuclear Core Light Nuclear Core Aluminum Leg Improved Aluminum Leg Flexi-carbon Leg Flexi-carbon Leg Flexi-carbon Leg Wheel Armored Wheel Heat Sink High-capacity Matter Pod Powered Armor Powered Armor Hardlight Generator Relay Coupler [NC] Relay Coupler [Swarmer] Relay Coupler [Grunt] Relay Coupler [Sentry] Relay Coupler [Sentry] Relay Coupler [Demolisher] Relay Coupler [Hunter] Relay Coupler [Heavy] Relay Coupler [Behemoth] Heavy EM Pulse Gun Heavy EM Pulse Gun Heavy EM Pulse Gun Beam Rifle Particle Gun Heavy Particle Cannon Heavy Particle Cannon Light Assault Rifle Light Assault Rifle Heavy Assault Rifle Gauss Rifle Proton Missile Launcher Proton Missile Launcher Grenade Launcher Mining Laser [Rating: 70] Favorites ----------- Power Light Nuclear Core Engine Improved Ion Engine Power Core Light Nuclear Core Propulsion Flexi-carbon Leg Treads Light Treads Leg Flexi-carbon Leg Wheel Wheel Hover Unit Aerolev Unit Flight Unit Improved VTOL Module Utility Improved Heat Sink Device Improved Heat Sink Storage Lightpack 2.0 Processor Improved Targeting Computer Hackware Relay Coupler [Grunt] Protection Light Armor Plating Weapon Particle Gun Energy Gun Particle Gun Energy Cannon Heavy Particle Cannon Ballistic Gun Heavy Assault Rifle Launcher Grenade Launcher Impact Weapon Maul Slashing Weapon Katana Special Melee Weapon Datajack Build | -11 -10 -9 -9 -9 -8 -8 -8 -8 -8 ------- Run | Yrd Mat Mat Min Exi Min Mat Gar Mat Gar Slots Evolved 4 | . . 2 . . . 2 . . . Power . | . . . . . . . . . . Propulsion . | . . . . . . . . . . Utility 4 | . . 2 . . . 2 . . . Weapon . | . . . . . . . . . . Parts Attached 81 | 6 7 6 9 2 2 9 20 12 8 Power 12 | 1 . 2 3 . 1 1 3 1 . Engine 7 | 1 . 2 2 . . 1 1 . . Core 5 | . . . 1 . 1 . 2 1 . Reactor . | . . . . . . . . . . Propulsion 20 | 2 3 1 4 . . 4 4 1 1 Treads 4 | 1 1 . . . . . 2 . . Leg 7 | . . . 2 . . 1 2 1 1 Wheel 7 | 1 2 1 2 . . 1 . . . Hover 1 | . . . . . . 1 . . . Flight 1 | . . . . . . 1 . . . Utility 29 | 1 3 1 1 2 1 2 7 5 6 Device 8 | . 1 . 1 . 1 1 4 . . Storage 6 | 1 2 . . 2 . 1 . . . Processor 4 | . . . . . . . . 2 2 Hackware 3 | . . . . . . . . . 3 Protection 8 | . . 1 . . . . 3 3 1 Artifact . | . . . . . . . . . . Weapon 20 | 2 1 2 1 . . 2 6 5 1 Energy Gun 7 | 2 1 1 1 . . . 1 . 1 Energy Cannon 2 | . . . . . . 2 . . . Ballistic Gun 2 | . . . . . . . 2 . . Ballistic Cannon . | . . . . . . . . . . Launcher 3 | . . 1 . . . . 1 1 . Special Weapon . | . . . . . . . . . . Impact Weapon 1 | . . . . . . . 1 . . Slashing Weapon 2 | . . . . . . . . 2 . Piercing Weapon . | . . . . . . . . . . Special Melee Weapon 3 | . . . . . . . 1 2 . Unidentified Prototypes 3 | . . . . . . 3 . . . Parts Lost 32 | . . 4 4 . . 1 10 5 8 Power 5 | . . 1 1 . . . 2 . 1 Propulsion 8 | . . 1 1 . . . 2 1 3 Utility 12 | . . . 2 . . 1 4 2 3 Weapon 7 | . . 2 . . . . 2 2 1 Highest Loss Streak 7 | . . 2 1 . . 1 2 2 7 To Critical Strikes . | . . . . . . . . . . Average Backups 22 | 2 7 8 13 13 15 18 35 35 37 Power 2 | . 1 1 2 2 2 3 2 1 1 Propulsion 3 | 2 3 1 2 2 2 4 7 4 4 Utility 6 | . . 2 2 1 3 1 11 16 21 Weapon 8 | . 2 2 6 7 6 9 15 10 10 Tool/Special . | . . . . . . . . . . Unused Backups 56 | . 3 1 3 1 1 1 12 7 27 Power 7 | . . . 3 . . . 2 1 1 Propulsion 8 | . 2 . . . . 1 . . 5 Utility 27 | . . 1 . 1 . . 7 3 15 Weapon 14 | . 1 . . . 1 . 3 3 6 Tool/Special . | . . . . . . . . . . Average Slot Usage (%) 78 | . 97 81 78 82 73 77 74 77 79 Engine 2 | . 14 10 3 . . . 2 . . Core 7 | . . . 7 11 11 9 6 9 8 Treads 1 | . 11 . . . . . 2 . . Leg 14 | . . . 16 22 22 5 10 18 16 Wheel 4 | . 16 22 5 . . 12 3 . . Device 9 | . 11 11 10 9 7 15 11 2 . Storage 12 | . 14 11 11 18 11 17 10 9 9 Processor 1 | . . . . . . . . 7 4 Protection 4 | . . 4 1 . . . 8 13 12 Energy Gun 9 | . 28 21 15 11 11 10 1 . . Launcher 5 | . . . 6 11 11 . 6 1 . Impact Weapon 1 | . . . . . . . 6 2 . Slashing Weapon 1 | . . . . . . . . 10 8 Special Melee Weapon 1 | . . . . . . . 1 2 6 Peak Build Rating 70 | 6 10 12 14 42 44 53 70 70 70 Average Rating 38 | 4 9 10 13 18 43 50 60 66 66 On Entrance 31 | . 6 10 12 14 41 44 52 67 69 Avg Prop Armor Cover (%) 11 | 19 13 . . . . 7 10 . . Naked Turns . | . . . . . . . . . . Heaviest Build 37 | 12 29 34 37 36 23 31 33 31 36 Greatest Support 40 | 16 20 20 26 23 23 28 40 40 40 Greatest Overweight (x) 3 | . 2 1 3 1 . 3 2 1 1 Average Overweight (x) . | . . 1 1 . . . . . . Largest Inventory Capacity 40 | 8 15 15 15 40 40 40 40 40 40 Average Capacity 29 | 7 10 15 15 18 40 40 40 40 40 Most Carried 40 | 6 9 11 15 15 15 24 40 39 39 Average Carried 22 | 3 7 8 13 13 15 18 35 35 37 Final Capacity 40 | 8 15 15 15 40 40 40 40 40 40 Final Carried 39 | 6 9 10 14 15 15 24 39 37 37 Class Distribution -------------------- 40% | Hauler-Mutant 32% | Scavenger-Mutant 16% | Bothacker-Mutant 9% | Mutant Dominant Class ---------------- Mutant | -10/Materials Mutant | -9/Materials Scavenger-Mutant | -9/Mines Scavenger-Mutant | -9/Exiles Hauler-Mutant | -8/Mines Hauler-Mutant | -8/Materials Hauler-Mutant | -8/Garrison Bothacker-Mutant | -8/Materials Bothacker-Mutant | -8/Garrison Resources | -11 -10 -9 -9 -9 -8 -8 -8 -8 -8 ----------- Run | Yrd Mat Mat Min Exi Min Mat Gar Mat Gar Matter Collected 1725 | 254 26 150 170 10 40 155 570 190 160 Remotely . | . . . . . . . . . . Salvage Created 3870 | . 178 281 566 . . 354 1266 941 284 Parts 186 | . 7 11 26 . . 19 69 40 14 Haulers Intercepted 2 | . . . . . . 1 . 1 . Recyclers Shooed . | . . . . . . . . . . Parts Field Recycled . | . . . . . . . . . . Retrieved Matter . | . . . . . . . . . . Parts Self-Destructed . | . . . . . . . . . . Prevented . | . . . . . . . . . . Parts Restored . | . . . . . . . . . . Kills | -11 -10 -9 -9 -9 -8 -8 -8 -8 -8 ------- Run | Yrd Mat Mat Min Exi Min Mat Gar Mat Gar Combat Hostiles Destroyed 94 | . 4 7 16 . . 7 37 19 4 Melee 21 | . . . . . . . 3 14 4 Guns 29 | . 4 4 12 . . 3 6 . . Cannons 5 | . . . . . . 4 1 . . AOE 26 | . . 1 4 . . . 18 3 . Classes Destroyed 10 | . 1 3 3 . . 1 1 1 . Worker 2 | . . . . . . . . 2 . Hauler 2 | . . . . . . 1 . 1 . Recycler 1 | . . . 1 . . . . . . Watcher 2 | . . 1 . . . . 1 . . Swarmer 29 | . . . 6 . . 1 16 5 1 Grunt 40 | . 4 4 8 . . 1 12 9 2 Brawler 4 | . . 1 1 . . . . 1 1 Protector 1 | . . . 1 . . . . . . Sentry 21 | . . 2 . . . 5 8 4 2 Hunter 1 | . . . . . . . 1 . . Best Kill Streak 7 | . 2 4 4 . . 2 7 5 2 Combat Bots Only 7 | . 2 3 4 . . 2 7 5 2 Max Kills in Single Turn 3 | . 1 1 2 . . 1 3 3 1 Gunslinging . | . . . . . . . . . . Exploded 3 | . . 1 2 . . . 3 2 . Melee 1 | . . . . . . . 1 1 1 Uniques/NPCs Destroyed . | . . . . . . . . . . Combat | -11 -10 -9 -9 -9 -8 -8 -8 -8 -8 -------- Run | Yrd Mat Mat Min Exi Min Mat Gar Mat Gar Hostile Shots Fired 434 | . 18 39 59 . . 19 134 78 87 Missed 122 | . 3 11 16 . . 6 45 24 17 Hits 312 | . 15 28 43 . . 13 89 54 70 Melee 4 | . . . . . . . . 4 . Projectile 308 | . 15 28 43 . . 13 89 50 70 AOE 2 | . . . . . . . 2 . . Critical Strikes 11 | . 1 . 1 . . 1 1 2 5 Damage Taken 4223 | . 201 356 513 . . 157 1103 764 1129 Core 891 | . 54 134 147 . . 26 154 124 252 Absorbed by Shields 381 | . . . . . . 60 321 . . Redirected to Shielding 54 | . . . . . . . . 54 . Core Remaining (%) 69 | 100 78 . . . 29 . . . . Volleys Fired 171 | . 13 28 41 . . 17 58 9 5 Largest 2 | . 2 2 2 . . 2 2 1 1 Hottest 140 | . 115 115 115 . . 140 140 39 45 Shots Fired 278 | . 25 51 75 . . 33 80 9 5 Gun 208 | . 25 47 72 . . 16 45 . 3 Cannon 30 | . . . . . . 17 13 . . Launcher 40 | . . 4 3 . . . 22 9 2 Special . | . . . . . . . . . . Kinetic 25 | . . . . . . . 25 . . Thermal 198 | . 25 47 72 . . 33 21 . . Explosive 18 | . . 4 3 . . . 11 . . Electromagnetic 37 | . . . . . . . 23 9 5 Robot Hit Streak 17 | . 9 17 15 . . 4 11 4 3 Robot Miss Streak 3 | . 2 3 3 . . 2 3 2 1 Penetration Max . | . . . . . . . . . . Secondary Targets 6 | . . 2 4 . . . . . . Max Gunslinging Chain 1 | . . 1 1 . . . . . . Shots Hit Robots 272 | . 20 38 48 . . 20 69 50 27 Core Hits 139 | . 10 12 30 . . 11 47 24 5 Critical Kills 2 | . . . . . . . 2 . . Critical Parts Destroyed 10 | . . . . . . . 7 3 . Critical Strikes 31 | . . 4 6 . . 1 10 8 2 Burn 12 | . . 4 6 . . 1 1 . . Smash 12 | . . . . . . . 9 3 . Sever 7 | . . . . . . . . 5 2 Melee Attacks 125 | . . . . . . . 43 47 35 Impact 48 | . . . . . . . 42 5 1 Slashing 66 | . . . . . . . . 40 26 Piercing . | . . . . . . . . . . Sneak Attacks 3 | . . . . . . . . 1 2 Combat Hostiles . | . . . . . . . . . . Follow-up Attacks 4 | . . . . . . . . 3 1 Damage Inflicted 7432 | . 264 648 979 . . 459 2579 1805 698 Guns 2136 | . 264 460 664 . . 209 499 . 40 Cannons 500 | . . . . . . 250 250 . . Explosions 2163 | . . 188 315 . . . 1115 482 63 Melee 2633 | . . . . . . . 715 1323 595 Ramming . | . . . . . . . . . . Kinetic 230 | . . . . . . . 230 . . Thermal 2404 | . 264 460 664 . . 459 459 98 . Explosive 1161 | . . 188 315 . . . 658 . . Electromagnetic 1004 | . . . . . . . 517 384 103 Impact 934 | . . . . . . . 715 179 40 Slashing 1699 | . . . . . . . . 1144 555 Piercing . | . . . . . . . . . . Highest Corruption . | . . . . . . . . . . Average Corruption . | . . . . . . . . . . Corruption Purged . | . . . . . . . . . . Corruption Blocked 3 | . . . . . . . . . 3 Overload Shots . | . . . . . . . . . . Overflow Damage 524 | . . . . . . . 319 150 55 Projectiles . | . . . . . . . . . . Explosions 35 | . . . . . . . 20 15 . Melee 489 | . . . . . . . 299 135 55 Knockbacks 5 | . . . . . . . 3 1 1 Impact 5 | . . . . . . . 3 1 1 Kinetic . | . . . . . . . . . . Secondary . | . . . . . . . . . . Self-Inflicted Damage 213 | . . . 30 . . . 137 46 . Shots 10 | . . . 1 . . . 6 3 . Rammed . | . . . . . . . . . . Targets Rammed . | . . . . . . . . . . Kicked . | . . . . . . . . . . Crushed . | . . . . . . . . . . Highest Temperature 324 | . 324 39 120 . . 208 186 9 48 Average Temperature 62 | . 130 10 43 . . 63 66 7 19 Received Heat Transfer 1303 | . 138 135 243 . . 37 363 243 144 Siege Activations . | . . . . . . . . . . Martial Activations . | . . . . . . . . . . Shielding Activations . | . . . . . . . . . . Robots Disrupted . | . . . . . . . . . . Combat Hostiles . | . . . . . . . . . . Robots Corrupted 10 | . . . . . . . 8 2 . Combat Hostiles 10 | . . . . . . . 8 2 . Parts Fried 19 | . . . . . . . 15 4 . Impact Corruptions 18 | . . . . . . . 13 4 1 Robots Melted 4 | . . 2 . . . . 2 . . Combat Hostiles 4 | . . 2 . . . . 2 . . Parts Melted 24 | . 2 4 10 . . 8 . . . Heat Transferred 6419 | . 740 1617 2197 . . 925 840 100 . Parts Sabotaged . | . . . . . . . . . . Parts Stolen . | . . . . . . . . . . Parts Stripped . | . . . . . . . . . . Power Chain Reactions 4 | . . . . . . . 3 1 . Alert | -11 -10 -9 -9 -9 -8 -8 -8 -8 -8 ------- Run | Yrd Mat Mat Min Exi Min Mat Gar Mat Gar Maximum Alert Level 4 | . . . . . . 1 4 3 3 Low Security (%) 53 | 100 100 100 100 . 100 69 . . . Level 1 5 | . . . . . . 30 9 . . Level 2 16 | . . . . . . . 18 61 57 Level 3 18 | . . . . . . . 44 38 42 Level 4 6 | . . . . . . . 27 . . Level 5 . | . . . . . . . . . . High Security . | . . . . . . . . . . Max Security . | . . . . . . . . . . Peak Influence 1491 | . 70 123 130 . . 377 1491 983 838 Initial 726 | . . . 4 . . . 202 726 629 Average 377 | . 22 62 38 . . 152 876 703 700 Influence Increases 3772 | . 100 193 481 . . 632 1409 703 254 Destroy 0b10 Robot/C 2215 | . 80 140 360 . . 340 740 380 175 Destroy 0b10 Robot/NC 55 | . . 5 10 . . 15 10 15 . Destroy Leader 366 | . 20 32 60 . . 112 30 102 10 Allied During Kill 154 | . . . 28 . . 112 6 . 8 Successful Hack 40 | . . . . . . 32 . 8 . Disable Machine 30 | . . . . . . 15 15 . . Anti-Garrison Action 500 | . . . . . . . 450 . 50 Destroy Structure 202 | . . 16 23 . . 6 143 3 11 Lose Combat Pursuer 210 | . . . . . . . 15 195 . Influence Decreases 2989 | . 100 180 424 70 . 320 230 1225 440 Entered New Map 1294 | . . . 9 70 . . 110 765 340 Time Decay 1285 | . 100 160 385 . . 230 . 410 . Lost Part 290 | . . 20 30 . . 10 100 50 80 Lost Ally 120 | . . . . . . 80 20 . 20 Squads Dispatched 7 | . . . 1 . . 3 . 3 . Investigation 1 | . . . . . . . . 1 . Extermination . | . . . . . . . . . . Reinforcement 2 | . . . . . . . . 2 . Assault 1 | . . . 1 . . . . . . Garrison 3 | . . . . . . 3 . . . Intercept . | . . . . . . . . . . Searches Triggered . | . . . . . . . . . . Construction Impeded 1 | . . . . . . . . 1 . Haulers Reinforced . | . . . . . . . . . . Active Scanning Responses . | . . . . . . . . . . Cargo Convoy Interrupts . | . . . . . . . . . . Stealth | -11 -10 -9 -9 -9 -8 -8 -8 -8 -8 --------- Run | Yrd Mat Mat Min Exi Min Mat Gar Mat Gar Distress Signals 6 | . . 1 . . . 3 2 . . Communications Jammed . | . . . . . . . . . . Distress Signals . | . . . . . . . . . . Times Spotted 137 | . 4 11 20 . . 15 41 32 14 Peak Tracking Total 8 | . 2 3 5 . . 5 8 3 4 Tactical Retreats 6 | . . . . . . . 1 5 . Traps | -11 -10 -9 -9 -9 -8 -8 -8 -8 -8 ------- Run | Yrd Mat Mat Min Exi Min Mat Gar Mat Gar Traps Triggered 5 | . . . . . . . 4 . 1 Indirectly . | . . . . . . . . . . Trap Hack Attempts . | . . . . . . . . . . Triggered . | . . . . . . . . . . Disarmed . | . . . . . . . . . . Reprogrammed . | . . . . . . . . . . Reused . | . . . . . . . . . . Traps Extracted . | . . . . . . . . . . Installed . | . . . . . . . . . . Triggered . | . . . . . . . . . . Machines | -11 -10 -9 -9 -9 -8 -8 -8 -8 -8 ---------- Run | Yrd Mat Mat Min Exi Min Mat Gar Mat Gar Machines Disabled 11 | . . . . . . 1 9 . 1 Max in Single Turn 1 | . . . . . . 1 1 . 1 Garrison Relay 7 | . . . . . . . 6 . 1 Phase Generator 1 | . . . . . . . 1 . . Machines Repaired . | . . . . . . . . . . Machines Dismantled . | . . . . . . . . . . Machines Sabotaged . | . . . . . . . . . . Overloaded Fab Kills . | . . . . . . . . . . Hacking | -11 -10 -9 -9 -9 -8 -8 -8 -8 -8 --------- Run | Yrd Mat Mat Min Exi Min Mat Gar Mat Gar Machines Accessed 29 | . 2 2 1 5 . 9 2 8 . Terminals 16 | . 1 2 1 . . 7 2 3 . Fabricators . | . . . . . . . . . . Repair Stations . | . . . . . . . . . . Recycling Units 3 | . 1 . . . . . . 2 . Scanalyzers 3 | . . . . . . 1 . 2 . Garrison Access 2 | . . . . . . 1 . 1 . Total Hacks 84 | . 4 4 2 31 . 21 3 19 . Successful 58 | . 1 3 . 31 . 13 . 10 . Failed 24 | . 3 1 2 . . 7 3 8 . Catastrophic 2 | . . . . . . 1 . 1 . Database Lockouts 2 | . . . . . . 1 . 1 . Manual 2 | . . . . 2 . . . . . Terminals 35 | . 2 4 2 . . 17 3 7 . Fabricators . | . . . . . . . . . . Repair Stations . | . . . . . . . . . . Recycling Units 5 | . 2 . . . . . . 3 . Scanalyzers 11 | . . . . . . 3 . 8 . Garrison Access 2 | . . . . . . 1 . 1 . Terminal Hacks 47 | . 1 3 . 31 . 10 . 2 . Record 31 | . . . . 30 . 1 . . . Robot Analysis 2 | . 1 1 . . . . . . . Prototype ID Bank 1 | . . . . . . 1 . . . Emergency Access Points 1 | . . . . . . 1 . . . Alert Level 3 | . . 1 . . . 2 . . . Locate Traps 3 | . . . . . . 1 . 2 . Dispatch Records 1 | . . . . . . 1 . . . Investigation Status 2 | . . . . . . 2 . . . Hauler Manifests 1 | . . 1 . . . . . . . Zone Layout 1 | . . . . . . 1 . . . Proto ID Catalog 1 | . . . . 1 . . . . . Fabricator Hacks . | . . . . . . . . . . Repair Station Hacks . | . . . . . . . . . . Recycling Unit Hacks 3 | . . . . . . . . 3 . Report Inventory 2 | . . . . . . . . 2 . Retrieve Components 1 | . . . . . . . . 1 . Scanalyzer 6 | . . . . . . 2 . 4 . Retrieve Study 6 | . . . . . . 2 . 4 . Garrison Access Hacks 2 | . . . . . . 1 . 1 . Unlock Access 2 | . . . . . . 1 . 1 . Unauthorized Hacks . | . . . . . . . . . . Terminals . | . . . . . . . . . . Fabricators . | . . . . . . . . . . Repair Stations . | . . . . . . . . . . Recycling Units . | . . . . . . . . . . Scanalyzers . | . . . . . . . . . . Garrison Access . | . . . . . . . . . . Data Cores Recovered 1 | . . . . . . 1 . . . Used 1 | . . . . . . 1 . . . Hacking Detections 18 | . 2 2 1 . . 7 2 4 . Full Trace Events 1 | . . . . . . . . 1 . Feedback Events . | . . . . . . . . . . Feedback Blocked . | . . . . . . . . . . Robot Schematics Acquired . | . . . . . . . . . . Robots Built . | . . . . . . . . . . Authchips . | . . . . . . . . . . Time . | . . . . . . . . . . Total Robot Build Rating . | . . . . . . . . . . Part Schematics Acquired . | . . . . . . . . . . Parts Built . | . . . . . . . . . . Authchips . | . . . . . . . . . . Time . | . . . . . . . . . . Total Part Build Rating . | . . . . . . . . . . Part Studies Acquired 5 | . . . . . . 2 . 3 . Parts Repaired . | . . . . . . . . . . Time . | . . . . . . . . . . Parts Recycled . | . . . . . . . . . . Recycled Matter . | . . . . . . . . . . Retrieved Matter . | . . . . . . . . . . Retrieved Components 3 | . . . . . . . . 3 . Parts Scanalyzed . | . . . . . . . . . . Part Schematics Acquired . | . . . . . . . . . . Parts Damaged . | . . . . . . . . . . Bothacking | -11 -10 -9 -9 -9 -8 -8 -8 -8 -8 ------------ Run | Yrd Mat Mat Min Exi Min Mat Gar Mat Gar Used RIF Installer 3 | . . . . . . . 1 . 2 Threat Obfuscator 1 | . . . . . . . . . 1 Patrol Navigation 1 | . . . . . . . . . 1 Robots Hacked 5 | . . . . . . . . 2 3 Non-combat 2 | . . . . . . . . 2 . Combat 3 | . . . . . . . . . 3 Robot Hacks Applied 6 | . . . . . . . . 2 4 parse_system 1 | . . . . . . . . 1 . no_distress 1 | . . . . . . . . 1 . scatter_targeting 2 | . . . . . . . . . 2 overwrite_iff 1 | . . . . . . . . . 1 formatsys_high 1 | . . . . . . . . . 1 Relay Couplers Released 32 | . . . . . . . 27 . 5 Machine Destruction 32 | . . . . . . . 27 . 5 Attached 3 | . . . . . . . . . 3 Fabnet Peak Effective % . | . . . . . . . . . . Robots Rewired 4 | . . . . . . . 1 . 3 Allies Hacked . | . . . . . . . . . . Hacks Repelled . | . . . . . . . . . . Allies | -11 -10 -9 -9 -9 -8 -8 -8 -8 -8 -------- Run | Yrd Mat Mat Min Exi Min Mat Gar Mat Gar Total Allies 10 | . . . 4 . . . 1 . 5 Largest Group 4 | . . . 4 4 4 4 1 . 3 Highest-Rated Group 71 | . . . 71 71 71 71 16 . 31 Highest-Rated Ally 31 | . . . 31 31 31 31 16 . 16 Total Orders 1 | . . . . . 1 . . . . GUARD 1 | . . . . . 1 . . . . Ally Attacks 118 | . . . 12 . . 79 9 . 18 Total Damage 1475 | . . . 207 . . 946 65 . 257 Kills 20 | . . . 3 . . 12 . . 5 Allies Corrupted . | . . . . . . . . . . Allies Melted . | . . . . . . . . . . Intel | -11 -10 -9 -9 -9 -8 -8 -8 -8 -8 ------- Run | Yrd Mat Mat Min Exi Min Mat Gar Mat Gar Active Infowar (turns) . | . . . . . . . . . . Robot Analysis Total 2 | . 1 1 . . . . . . . Derelict Logs Recovered 3 | . . . 3 . . . . . . Drone Launches . | . . . . . . . . . . Drone Recoveries . | . . . . . . . . . . Exploration | -11 -10 -9 -9 -9 -8 -8 -8 -8 -8 ------------- Run | Yrd Mat Mat Min Exi Min Mat Gar Mat Gar Turns Passed 8134 | 67 312 361 1823 986 784 658 1647 991 505 Spaces Moved 4848 | 53 231 227 967 562 645 345 1019 559 240 Core 1 | 1 . . . . . . . . . Treads . | . . . . . . . . . . Legs 3437 | . . . 695 562 645 74 662 559 240 Wheels 1410 | 52 231 227 272 . . 271 357 . . Hover . | . . . . . . . . . . Flight . | . . . . . . . . . . Fastest Speed 50 | 50 95 95 90 120 120 85 85 120 120 Average Speed 131 | 99 98 95 165 174 120 126 112 120 121 Slowest Speed 330 | 100 110 95 190 190 120 330 120 190 190 Overloaded Moves . | . . . . . . . . . . Propulsion Burnouts . | . . . . . . . . . . Robots Hopped . | . . . . . . . . . . Potential Cave-ins . | . . . . . . . . . . Cave-ins Triggered . | . . . . . . . . . . Exploration Rate (%) 54 | 4 51 17 99 91 95 26 84 44 36 Regions Visited 9 Branch Regions 3 Pre-discovered Areas 1 | . . . . 1 . . . . . Known Exits Taken 2 | . . . . . . 1 . 1 . Unknown Exits Taken 6 | 1 1 1 1 1 1 . . . . Scrap Searched 2 | . . . 1 . 1 . . . . Spaces Dug 5 | . . . . . . . 4 . 1 Terrain Destroyed 169 | . . 20 27 . . 6 112 3 1 Melee 5 | . . . . . . . 4 . 1 Projectile 6 | . . . . . . 6 . . . AOE 158 | . . 20 27 . . . 108 3 . Terrain Rammed . | . . . . . . . . . . Walls Destroyed . | . . . . . . . . . . Machines Disabled . | . . . . . . . . . . Actions | -11 -10 -9 -9 -9 -8 -8 -8 -8 -8 --------- Run | Yrd Mat Mat Min Exi Min Mat Gar Mat Gar Total 6085 | 64 290 319 1110 569 654 527 1351 801 400 Wait 626 | . 26 51 73 . 8 132 121 151 64 Move 4838 | 52 230 226 966 561 644 344 1017 558 240 Hop . | . . . . . . . . . . Pick Up 101 | 6 6 5 9 1 . 14 41 12 7 Fast Attach 29 | 6 3 1 3 2 1 2 5 5 1 Attach 24 | . . 4 1 . . 2 9 4 4 Detach 7 | . 1 . . 2 . . 1 3 . Swap 72 | . 4 3 10 . 1 12 22 8 12 Drop 43 | . 7 1 7 3 . 4 10 8 3 Fire 171 | . 13 28 41 . . 17 58 9 5 Melee 120 | . . . . . . . 43 43 34 Ram . | . . . . . . . . . . Kick . | . . . . . . . . . . Crush . | . . . . . . . . . . Escape Stasis 16 | . . . . . . . 16 . . Rewire 38 | . . . . . . . 8 . 30 Trap . | . . . . . . . . . . Miscellaneous . | . . . . . . . . . . Route ------- -11/Scrapyard -10/Materials (discovered 3 exits: *Mat x2 / [*Min]) -9/Materials -9/Mines (discovered 3 exits: *Mat x2 / *Exi) -9/Exiles (discovered 2 exits: [*Min x2]) -8/Mines -8/Materials (discovered 2 exits: [*Fac] / Gar) -8/Garrison (discovered 2 exits: *Mat x2) -8/Materials -8/Garrison (discovered 1 exit: [*Mat]) History --------- Turn | Location | Event 14 | -11/Scrapyard | Discovered new exit (range 16) 68 | -11/Scrapyard | Entered Materials 224 | -10/Materials | Discovered new exit (range 14) 255 | -10/Materials | Discovered new exit (range 16) 316 | -10/Materials | Build established: Mutant 365 | -10/Materials | Discovered new exit (range 11) 380 | -10/Materials | Entered another Materials area 380 | -9/Materials | Evolved 2 slots: Utility x2 696 | -9/Materials | Discovered new exit (range 16) 741 | -9/Materials | Entered Mines 752 | -9/Mines | Met a Derelict bent on vengeance 852 | -9/Mines | Core integrity fell below 50% 887 | -9/Mines | Build established: Scavenger-Mutant 1064 | -9/Mines | Learned Materials non-interactive machine intel 1117 | -9/Mines | Met a Derelict testing a Signal Generator 1864 | -9/Mines | Deemed a non-threat by the Exiles lab entrance 1864 | -9/Mines | Discovered new exit (range 5) 2148 | -9/Mines | Learned Materials security intel 2182 | -9/Mines | Discovered new exit (range 6) 2197 | -9/Mines | Assisted by bots powering up and referring to "LRC-V3" 2254 | -9/Mines | Discovered new exit (range 8) 2272 | -9/Mines | Learned Materials emergency access door positions 2564 | -9/Mines | Entered Exiles 2564 | -9/Exiles | Accompanied by 4 allies 2612 | -9/Exiles | Met 8R-AWN 2644 | -9/Exiles | Met EX-HEX 2755 | -9/Exiles | Met EX-DEC 2828 | -9/Exiles | Visited The Gauntlet 3147 | -9/Exiles | Discovered new exit (range 14) 3208 | -9/Exiles | Learned location of Zion (-6) 3254 | -9/Exiles | Met EX-BIN 3282 | -9/Exiles | Aligned with FarCom system 3284 | -9/Exiles | Given EX-Vault access code 3374 | -9/Exiles | Opened EX-Vault 3399 | -9/Exiles | Found Lightpack 2.0 3426 | -9/Exiles | Warned to stay clear of 0b10 Research branches 3524 | -9/Exiles | Discovered new exit (range 14) 3550 | -9/Exiles | Left Exiles lab with Lightpack 2.0 3550 | -9/Exiles | Entered Mines 3550 | -8/Mines | Accompanied by 4 allies 3688 | -8/Mines | Build established: Hauler-Mutant 4301 | -8/Mines | Discovered new exit (range 10) 4334 | -8/Mines | Entered Materials 4334 | -8/Materials | Accompanied by 4 allies 4334 | -8/Materials | Evolved 2 slots: Utility x2 4337 | -8/Materials | Loaded intel: 41 non-interactive machine locations 4629 | -8/Materials | Garrison activated, responded to threat 4771 | -8/Materials | Discovered new exit (range 9) 4829 | -8/Materials | Central database locked down 4891 | -8/Materials | Lost 3 allies 4989 | -8/Materials | Identified exit to Garrison 4992 | -8/Materials | Entered Garrison 5018 | -8/Garrison | Triggered checkpoint 5066 | -8/Garrison | Garrison Relay disabled 5177 | -8/Garrison | Destroyed 7 combat bots 5338 | -8/Garrison | Triggered checkpoint 5375 | -8/Garrison | Garrison Relay disabled 5590 | -8/Garrison | Found Powered Armor 5592 | -8/Garrison | Found Powered Armor 5594 | -8/Garrison | Found Powered Armor 5721 | -8/Garrison | Triggered checkpoint 5728 | -8/Garrison | Triggered checkpoint 5794 | -8/Garrison | Discovered new exit (range 10) 5822 | -8/Garrison | Triggered checkpoint 5858 | -8/Garrison | Triggered checkpoint 5954 | -8/Garrison | Garrison Relay disabled 6196 | -8/Garrison | Discovered new exit (range 15) 6238 | -8/Garrison | Triggered checkpoint 6394 | -8/Garrison | Phase Generator disabled 6458 | -8/Garrison | Triggered checkpoint 6500 | -8/Garrison | Installed Relay Interface Framework 6510 | -8/Garrison | Garrison Relay disabled 6567 | -8/Garrison | Garrison Relay disabled 6598 | -8/Garrison | Garrison Relay disabled 6639 | -8/Garrison | Entered Materials 6975 | -8/Materials | Build established: Bothacker-Mutant 7169 | -8/Materials | Central database locked down 7447 | -8/Materials | Core integrity fell below 50% 7629 | -8/Materials | Identified exit to Garrison 7630 | -8/Materials | Entered Garrison 7654 | -8/Garrison | Triggered checkpoint 7658 | -8/Garrison | Discovered new exit (range 5) 7830 | -8/Garrison | Triggered checkpoint 7907 | -8/Garrison | Expanded RIF knowledge: Patrol Navigation 7921 | -8/Garrison | Garrison Relay disabled 7980 | -8/Garrison | Triggered checkpoint 8083 | -8/Garrison | Expanded RIF knowledge: Threat Obfuscation 8130 | -8/Garrison | Core integrity fell below 20% 8135 | -8/Garrison | Destroyed by P-60 Hacker with Shock Rifle Last Messages --------------- 08113_ Relay Coupler [Sentry] destroyed. 08117_ Corruption Screen destroyed. 08119_ Flexi-carbon Leg destroyed. 08123_ Lgt. Nuclear Core destroyed. 08124_ Y-45 Defender destroyed. 08125_ Acquired 35 matter. 08126_ P-60 Hacker Shock Rifle severed. 08126_ P-60 Hacker resets P-60 Hacker, system corruption cleaned. 08128_ Lgt. Armor Plating destroyed. 08129_ Maul follow-up attack on P-60 Hacker. 08129_ Destroyed Imp. Heat Sink. 08129_ P-60 Hacker system corrupted by crushing effect. 08129_ P-60 Hacker knocked back. 08129_ Corruption Screen intercepted 1% system corruption. 08131_ Maul destroyed. 08135_ Corruption Screen intercepted 1% system corruption. Map ----- +----------------------------------------------------+ | ?????????????????????????????????????????????????? | | ##???????????????????????????????????????????????? | | "#???????????????????????????????????????????????? | | "#???????????????????????????????????????????????? | | "#???????????????????????????????????????????????? | | "#???????????????????????????????????????????????? | | #???????????????????????????????????????????????? | | ##???????????????????????????????????????????????? | | #????????????????????????????????????????????????? | | #??#####?????????????????????????????????????????? | | #??#[% #?????????????????????????????????????????? | | #### =###???????????????????????????????????????? | | [ *#??????????????????g?g??????????????????? | | ########*#???????????????????????????????????????? | | #??????#%#???????????????????????????????????????? | | #??????#!#???????????????????????????????????????? | | #??????# #???????????????????????????????????????? | | #??????# #???????????????????????????????????????? | | #??????# #???????????????????????????????????????? | | ???????# #???????????????????????????????????????? | | ???????# #????????????#####??????????????????????? | | ######## #######??????#"""#??????????????????????? | | #??????#" "#??????????????????????? | | #??????#"["#??????????????????????? | | ### ######## #??????#"p[###????????????????????? | | ??# #??????# #??????#p!@+=#????????????????????? | | ??# #??????# #??????#[p#########???????????????? | | ??# #??????# #??????## #???????????????? | | ??# #??????# #???????# #########???????????????? | | ??# #??????# #######?# #???????????????????????? | | ??# ^#??????# ## #?# #???????????????????????? | | ??#^ #?????## ## ###"##??????????????????????? | | ??# ####### =%= [% #??????????????????????? | | ??# ![%!% * =%* ???????????????? | | ??# %=! *! [ #????????????? | | ??########## ## ## ###########????????????? | | ???????????# ## ## #??????????????????????? | | ?????????? "??????????????????????? | | ?????????# "g?????????????????????? | | ?????????# "??????????????????????? | | ?????????# "g?????????????????????? | | ?????????### ## ## #??????????????????????? | | ???????????# ## ## #??????????????????????? | | ???????????# ??????????????????????? | | ???????????# ??????????????????????? | | ???????????# ??????????????????????? | | ???????????# ##""""######??????????????????????? | | ???????????? #?????????????????????????????????? | | ?????????????????????????????????????????????????? | | ?????????????????????????????????????????????????? | +----------------------------------------------------+ Best States ------------- Heat Dissipation 59 Energy Generation 14 Energy Capacity 490 Matter Stores 300 Matter Capacity 300 Sight Range 16 Terrain Scan Density 10 Corruption Block 8 Armor Coverage 625 Power Shielding 66 Evasion (%) 55 Targeting Accuracy 6 Melee Accuracy 5 Recoil Reduction 1 Relay Coupler Types 2 Relay Coupler Value 39 Item Schematics ----------------- None Robot Schematics ------------------ None Fabricated ------------ Nothing Repaired ---------- Nothing Studied --------- Com. Wheel | -8/Materials | Hacked Arm. Wheel | -8/Materials | Hacked Missile Launcher | -8/Materials | Hacked Katana | -8/Materials | Hacked Blade Saw | -8/Materials | Hacked Alien Tech Used ----------------- None Achievements -------------- None Challenges ------------ None Game ------ Seed PulseWeightCharge Manual? 0 Play Time 01:48:43 Cumulative 63.3 hours Start 2026.07.05 @ 16:40:21 End 2026.07.05 @ 19:33:03 Sessions 1 Manual Loads 0 Difficulty Rogue Special Mode None Game No. 40 Rogue 40 Adventurer 0 Explorer 0 Win Type - Total 0 Types 0/0/0/0/0/0/0/0/0/0 Lore% 44 Gallery% 33 Achievement% 29 Wizard Run 0 Options --------- Layout 2 ASCII 0 Keyboard 0 Movement Mouse Keybinds 0 Fullscreen 1 Font 24/Smallcaps Map View 50x44 Zoom Use 0% Tactical HUD 1 Map Filters NONE Filters NONE Steam 1 RUN: 1e5d7805-4869-4db7-8934-f0a95d288c0c